bitfinex-derivatives/quotes_ETHF0:USTF0_20250518
["timestamp","ask_amount","ask_price","bid_price","bid_amount"]
[1747611933278,0.81413,2455.6,2455.5,1.346]
[1747611933871,1.4192,2455.8,2455.5,1.346]
[1747611933872,10.9212,2455.8,2455.5,1.346]
[1747611934178,0.81413,2455.6,2455.5,2.16015]
[1747611934678,0.81413,2455.6,2455.5,1.346]
[1747611934879,0.81417,2455.5,2455.4,0.819]
[1747611935274,0.81427,2455.2,2455.1,1.3147]
[1747611935578,0.81427,2455.2,2455.1,11.63]
[1747611935777,0.81427,2455.2,2455.0,3.2078]
[1747611935778,0.8143,2455.1,2455.0,3.2078]
[1747611936079,0.81429,2455.2,2455.0,3.2078]
[1747611936275,1.396,2455.4,2455.1,1.3147]
[1747611936489,0.81415,2455.6,2455.5,0.81416]
[1747611936782,0.81417,2455.5,2455.4,2.24309]
[1747611936975,0.81417,2455.5,2455.4,1.4289]
[1747611937281,1.316,2455.8,2455.4,2.2431]
[1747611937474,10.815,2455.8,2455.4,2.2431]
[1747611937778,10.815,2455.8,2455.5,0.81416]
[1747611937967,0.8141,2455.7,2455.5,2.24306]
[1747611938167,0.81413,2455.7,2455.5,2.24306]
[1747611938374,2.13013,2455.7,2455.5,2.24306]
[1747611938575,1.316,2455.7,2455.2,0.7454]
[1747611938773,0.81427,2455.2,2455.1,1.4289]
[1747611938976,0.8143,2455.1,2455.0,9.59318003]
[1747611939176,2.1303,2455.1,2455.0,0.09218003]
[1747611939777,0.81443,2454.7,2454.6,3.2078]
[1747611940175,0.81453,2454.4,2454.1,4.02242]
[1747611940378,1.3663,2454.6,2454.1,5.5778]
[1747611940579,1.3663,2454.6,2454.4,3.2078]
[1747611940875,2.18077,2454.6,2454.5,1.4269]
[1747611941071,0.8145,2454.5,2454.4,3.2078]
[1747611941276,1.3663,2454.5,2454.2,0.81458]
[1747611941475,1.3663,2454.5,2454.1,4.02242]
[1747611941681,0.8146,2454.2,2454.1,3.2078]
[1747611941970,9.496,2454.4,2453.9,0.7707]
[1747611942174,1.3663,2454.3,2454.1,0.8146]
[1747611942390,1.3663,2454.3,2454.1,2.2415]
[1747611942580,2.18087,2454.3,2454.1,1.4269]
[1747611942780,0.8146,2454.2,2454.1,1.4269]
[1747611942982,2.2128,2454.2,2453.9,0.86288003]
[1747611943180,0.81464,2454.1,2453.9,2.19128003]
[1747611943482,1.3982,2454.0,2453.9,2.19128003]
[1747611943685,1.3982,2454.0,2453.9,3.00595003]
[1747611943983,2.21286,2454.0,2453.9,0.86288003]
[1747611944183,2.21286,2454.0,2453.9,0.7707]
[1747611944383,1.3982,2454.0,2453.9,0.7707]
[1747611944574,1.3982,2454.0,2453.9,2.0991]
[1747611945271,9.495,2454.4,2453.9,2.0991]
[1747611945475,1.3982,2454.3,2454.1,3.2078]
[1747611945681,1.3982,2454.3,2454.2,1.3284]
[1747611945882,1.3982,2454.3,2454.1,3.2078]
[1747611946077,0.8146,2454.2,2454.1,3.2078]
[1747611946277,0.81466,2454.0,2453.9,0.7707]
[1747611947688,3.2078,2454.2,2453.5,3.2078]
[1747611947986,0.81475,2453.8,2453.6,0.94216576]
[1747611948187,1.297,2453.9,2453.8,0.81473]
[1747611948387,1.297,2454.1,2454.0,0.81466]
[1747611948885,0.81466,2454.0,2453.9,1.3362]
[1747611949075,0.81466,2454.0,2453.8,4.02252]
[1747611949280,0.81466,2454.0,2453.8,5.39932]
[1747611949481,0.81466,2454.0,2453.8,4.02252]
[1747611949689,2.2001,2453.9,2453.8,3.2078]
[1747611949890,0.81475,2453.8,2453.6,11.69759]
[1747611950186,0.81476,2453.7,2453.6,10.8828]
[1747611950383,2.20012,2453.9,2453.6,11.01016517]
[1747611950583,0.81474,2453.8,2453.6,10.32078]
[1747611950785,1.3854,2453.7,2453.6,10.32078]
[1747611950977,2.20016,2453.7,2453.6,9.6333663]
[1747611951481,2.20016,2453.7,2453.6,0.1273663]
[1747611951685,0.8149,2453.3,2453.2,9.506]
[1747611951991,0.8149,2453.3,2453.0,2.92909]
[1747611952183,1.3579,2453.2,2453.1,0.12739084]
[1747611952386,2.17283,2453.2,2453.1,0.12739084]
[1747611952587,1.3579,2453.2,2453.0,2.92909]
[1747611952784,0.81496,2453.1,2453.0,2.1141]
[1747611952985,0.81496,2453.1,2453.0,0.7373]
[1747611953181,0.81496,2453.1,2452.9,13.52883]
[1747611953382,1.3579,2453.0,2452.9,13.52883]
[1747611953586,1.3579,2453.0,2452.9,12.84120244]
[1747611953888,1.3579,2453.0,2452.9,13.65623244]
[1747611954189,1.3579,2453.0,2452.9,5.56603244]
[1747611954384,0.8149,2453.3,2452.9,4.75100473]
[1747611954692,9.491,2453.7,2453.2,3.2078]
[1747611954887,1.3579,2453.5,2453.4,0.81486]
[1747611955090,1.3579,2453.5,2453.4,2.93856]
[1747611955888,1.3579,2453.5,2453.4,2.1237]
[1747611956489,0.81486,2453.4,2453.3,3.2078]
[1747611956685,0.81496,2453.2,2453.0,3.2078]
[1747611956890,0.81496,2453.1,2453.0,3.2078]
[1747611957287,0.81496,2453.1,2452.9,9.508]
[1747611957487,1.3137,2453.0,2452.9,9.508]
[1747611958082,1.3137,2453.0,2452.9,10.32303]
[1747611958488,1.3137,2453.0,2452.9,11.75493]
[1747611959098,1.3137,2453.0,2452.9,11.88232866]
[1747611959294,1.3137,2453.0,2452.9,11.75493]
[1747611959496,9.489,2453.3,2453.2,0.81493]
[1747611959692,10.8603,2453.3,2453.2,4.02273]
[1747611960092,10.8603,2453.3,2453.2,0.81493]
[1747611960501,11.6752,2453.3,2453.2,0.81493]
[1747611960695,1.3723,2453.3,2453.2,0.81493]
[1747611960999,9.487,2453.6,2453.2,3.2078]
[1747611961192,1.3644,2453.5,2453.4,0.81484]
[1747611961387,3.2078,2453.9,2453.8,0.81473]
[1747611961592,0.81467,2454.0,2453.9,0.81469]
[1747611961796,1.3644,2454.1,2454.0,0.81466]
[1747611961999,0.8147,2453.9,2453.8,1.4201]
[1747611962400,0.81473,2453.8,2453.7,9.509]
[1747611962591,0.8148,2453.6,2453.5,0.7932]
[1747611962902,1.3644,2453.8,2453.1,1.4201]
[1747611962903,0.8149,2453.4,2453.1,1.4201]
[1747611963096,0.81491,2453.3,2453.1,2.23504]
[1747611963298,0.81488,2453.4,2453.2,0.94229811]
[1747611963596,0.8148,2453.6,2453.4,0.81484]
[1747611963798,3.2078,2454.2,2453.5,0.12737502]
[1747611963988,1.4907,2454.5,2454.1,3.2078]
[1747611964291,1.4907,2454.5,2454.1,4.02241]
[1747611964497,0.81459,2454.3,2454.1,4.02241]
[1747611964797,0.81458,2454.3,2454.1,4.02241]
[1747611965302,1.4907,2454.5,2454.2,0.12734158]
[1747611965490,2.30521,2454.5,2454.1,3.2078]
[1747611965693,0.81439,2454.9,2454.4,3.2078]
[1747611966000,9.484,2455.0,2454.6,0.81444]
[1747611966204,9.484,2455.0,2454.5,0.12732097]
[1747611966205,9.484,2455.0,2454.5,1.3128]
[1747611966495,9.484,2455.0,2454.6,0.12731983]
[1747611966699,0.81444,2454.7,2454.5,2.12729]
[1747611966893,0.81444,2454.7,2454.6,0.1273188]
[1747611967095,0.81443,2454.7,2454.6,0.1273188]
[1747611967294,0.81443,2454.7,2454.4,0.81452]
[1747611967499,0.81446,2454.6,2454.5,0.12732412]
[1747611967698,3.2078,2455.0,2454.3,9.483]
[1747611967995,0.7472,2455.1,2454.5,3.2078]
[1747611968196,9.481,2455.0,2454.9,0.81435]
[1747611968500,0.7472,2455.1,2454.6,1.3448]
[1747611968696,0.81422,2455.4,2455.1,0.81429]
[1747611968897,13.50546166,2455.7,2454.8,3.2078]
[1747611968898,1.5394,2455.6,2455.4,0.81418]
[1747611969099,0.0814498,2455.5,2455.4,0.8142]
[1747611969301,0.0814498,2455.5,2455.4,0.94148145]
[1747611969605,1.34982582,2456.1,2455.4,5.13728145]
[1747611969797,0.81413,2455.6,2455.5,0.12725414]
[1747611970302,0.81413,2455.6,2455.3,0.81422]
[1747611970503,0.81417,2455.5,2455.4,0.12727852]
[1747611970706,9.48,2455.9,2455.5,0.81416]
[1747611970903,9.48,2455.9,2455.4,0.81418]
[1747611971102,1.34982582,2456.1,2455.5,0.12727125]
[1747611971308,1.34982582,2456.1,2455.9,0.81402]
[1747611972006,1.34982582,2456.1,2456.0,0.814]
[1747611972205,9.477,2456.2,2455.9,0.81402]
[1747611972404,9.477,2456.2,2455.6,4.0041]
[1747611972711,9.477,2456.2,2455.9,3.2078]
[1747611972904,10.29095,2456.2,2456.0,0.81399]
[1747611973104,10.29095,2456.2,2455.9,4.02181]
[1747611973610,10.29095,2456.2,2456.0,0.814]
[1747611973906,1.5394,2456.3,2455.9,3.2078]
[1747611974099,3.2078,2456.5,2456.4,0.81387]
[1747611974299,10.28675,2456.8,2456.2,3.2078]
[1747611974510,0.81378,2456.7,2456.5,0.8138]
[1747611974808,2.16938,2456.7,2456.5,0.8138]
[1747611975007,1.3556,2456.7,2456.6,0.8138]
[1747611975209,1.3556,2456.7,2456.6,4.0216]
[1747611975405,1.34982582,2457.0,2456.6,3.2078]
[1747611975603,2.16932,2456.9,2456.6,3.2078]
[1747611975803,1.3556,2456.9,2456.7,0.81376]
[1747611976008,1.3556,2456.9,2456.8,0.81374]
[1747611976205,1.34982582,2457.0,2456.7,9.477]
[1747611976507,1.34982582,2457.0,2456.8,0.8137]
[1747611977008,1.34982582,2457.0,2456.9,0.8137]
[1747611977009,2.65922582,2457.0,2456.9,0.8137]
[1747611977512,1.3094,2457.0,2456.7,9.477]
[1747611977710,9.469,2457.5,2456.9,3.2078]
[1747611978011,1.3094,2457.5,2457.4,3.2078]
[1747611978509,1.3094,2457.5,2457.4,4.02134]
[1747611978704,1.3094,2457.5,2457.3,0.81355]
[1747611978909,0.81354,2457.4,2457.2,0.81358]
[1747611979218,1.3094,2457.5,2457.2,9.475]
[1747611979503,0.81364,2457.1,2457.0,0.7721]
[1747611979708,1.3094,2457.3,2456.8,9.475]
[1747611979896,1.3306,2457.0,2456.8,9.475]
[1747611980095,2.14428,2457.0,2456.8,9.475]
[1747611980300,2.14428,2457.0,2456.8,10.28873]
[1747611980501,1.3306,2457.0,2456.5,3.2078]
[1747611980702,1.3306,2457.0,2456.9,0.8137]
[1747611981111,1.3306,2457.0,2456.8,13.49651]
[1747611981413,0.8136,2457.2,2457.0,0.81366]
[1747611981607,2.1442,2457.2,2457.0,0.81366]
[1747611981910,1.3306,2457.2,2457.1,0.81364]
[1747611982110,2.14421,2457.2,2457.0,0.81365]
[1747611982316,0.81367,2457.0,2456.8,13.49652]
[1747611982609,1.3306,2456.9,2456.8,13.49652]
[1747611982914,2.1443,2456.9,2456.8,12.6828]
[1747611983105,1.3306,2456.9,2456.8,13.49654]
[1747611983306,0.81362,2457.2,2456.8,12.6828]
[1747611983607,1.3042,2457.2,2457.1,4.02144]
[1747611983806,1.3042,2457.2,2457.1,3.2078]
[1747611984115,15.49644,2457.7,2457.3,0.81355]
[1747611984116,0.81353,2457.5,2457.3,0.81355]
[1747611984308,0.81353,2457.5,2457.1,3.2078]
[1747611984513,2.11774,2457.4,2457.2,0.81359]
[1747611984714,0.81357,2457.3,2457.2,1.3804]
[1747611985015,0.81362,2457.2,2457.0,0.81365]
[1747611985316,6.02246,2457.7,2457.6,0.81347]
[1747611985317,3.9888,2457.7,2457.6,0.81347]
[1747611985522,2.03307,2458.4,2457.4,3.2078]
[1747611985523,14.71287,2458.4,2457.4,3.2078]
[1747611985706,9.714,2458.4,2458.2,3.2078]
[1747611985909,0.81321,2458.4,2458.3,9.472]
[1747611986310,0.81324,2458.3,2458.2,3.2078]
[1747611986512,0.81332,2458.1,2457.8,3.2078]
[1747611986708,1.4048,2458.0,2457.8,4.02119]
[1747611986911,2.21814,2458.0,2457.8,4.02119]
[1747611987109,1.4048,2458.0,2457.8,4.02119]
[1747611987314,2.21814,2458.0,2457.8,4.02119]
[1747611987609,2.21814,2458.0,2457.8,3.2078]
[1747611987610,1.4048,2458.0,2457.8,3.2078]
[1747611988112,1.4048,2458.0,2457.8,4.02119]
[1747611988504,2.21814,2458.0,2457.8,4.02119]
[1747611988705,0.81337,2457.9,2457.7,2.18413]
[1747611988916,1.4035,2457.8,2457.7,2.18413]
[1747611989214,1.4035,2457.8,2457.6,9.471]
[1747611989413,1.4035,2457.8,2457.7,0.81344]
[1747611989719,12.9218,2458.8,2457.7,11.93116031]
[1747611989917,0.81322,2458.4,2458.2,0.81326]
[1747611990113,0.81322,2458.4,2458.3,9.471]
[1747611990312,0.81318,2458.5,2458.3,10.28423]
[1747611990513,0.81318,2458.5,2458.3,11.66193]
[1747611991316,0.31972854,2458.8,2458.4,3.2078]
[1747611991507,1.4035,2458.9,2458.1,3.2078]
[1747611991707,0.81322,2458.4,2458.2,0.81326]
[1747611991908,0.81336,2458.0,2457.9,9.469]
[1747611992116,3.058,2458.0,2457.6,10.8957]
[1747611992308,3.058,2458.0,2457.9,2.24007]
[1747611992817,3.058,2458.0,2457.9,10.19297]
[1747611993121,2.03311,2458.3,2457.8,3.2078]
[1747611993415,0.81349,2457.6,2457.4,11.70923]
[1747611993612,1.2935,2457.5,2457.2,3.2078]
[1747611993816,0.81355,2457.4,2457.2,9.469]
[1747611994113,1.2935,2457.3,2457.2,9.469]
[1747611994320,1.2935,2457.3,2457.2,10.2826]
[1747611994616,1.2935,2457.3,2457.0,10.8947]
[1747611994617,0.81364,2457.1,2457.0,10.8947]
[1747611994816,0.81363,2457.2,2457.0,10.8947]
[1747611995010,0.81363,2457.2,2456.9,4.0215]
[1747611995011,0.8137,2457.0,2456.6,3.2078]
[1747611995206,1.3009,2456.9,2456.7,9.468]
[1747611995411,1.3009,2456.9,2456.7,10.28175]
[1747611996120,1.3009,2456.9,2456.8,0.81374]
[1747611996515,1.3009,2456.9,2456.7,9.468]
[1747611996817,0.81348,2457.6,2457.3,0.81355]
[1747611997116,0.81355,2457.4,2457.2,3.2078]
[1747611997317,0.8136,2457.2,2457.1,9.449]
[1747611997506,0.8136,2457.2,2457.1,9.57618568]
[1747611997706,0.81369,2457.0,2456.8,9.449]
[1747611997917,1.3009,2457.3,2457.0,0.81367]
[1747611997918,1.2989,2457.1,2457.0,0.81367]
[1747611998415,3.2078,2457.5,2457.0,0.12719251]
[1747611998613,1.2989,2457.4,2457.2,0.81359]
[1747611998919,2.11245,2457.4,2457.2,1.3231]
[1747611999419,2.11245,2457.4,2457.3,0.12718132]
[1747611999621,2.11245,2457.4,2457.2,1.3231]
[1747612000020,0.81357,2457.3,2457.2,1.3231]
[1747612000217,1.2989,2457.3,2457.2,2.26388216]
[1747612000421,1.58155,2457.7,2457.4,0.81352]
[1747612000719,0.81347,2457.6,2457.5,0.12717192]
[1747612001022,2.11007,2457.6,2457.5,0.12717192]
[1747612001521,1.2966,2457.6,2457.5,0.12717192]
[1747612001730,2.11007,2457.6,2457.5,0.12716888]
[1747612002620,2.033,2458.5,2457.5,3.33496888]
[1747612002823,1.2966,2458.0,2457.7,0.81342]
[1747612003123,0.81333,2458.1,2457.8,5.52145888]
[1747612003325,0.81329,2458.2,2457.9,0.94053888]
[1747612003621,2.10991,2458.1,2458.0,0.12714086]
[1747612004726,4.02097,2458.6,2458.0,5.12714086]
[1747612004924,4.5043,2458.6,2458.2,3.2078]
[1747612005126,0.81321,2458.4,2458.3,10.93524086]
[1747612005321,0.8132,2458.5,2458.3,11.74847086]
[1747612005525,1.2965,2458.5,2458.4,0.12714086]
[1747612006228,1.2965,2458.5,2458.4,1.48724086]
[1747612006430,2.10967,2458.5,2458.4,1.48724086]
[1747612007122,1.2965,2458.5,2458.4,2.30045086]
[1747612007323,1.2965,2458.5,2458.4,2.30043023]
[1747612007524,0.7234,2458.9,2458.4,1.48722023]
[1747612007726,1.301,2458.8,2458.7,0.81311]
[1747612008023,0.0054864,2459.0,2458.9,0.81304]
[1747612008226,0.0054864,2459.0,2458.9,0.12712023]
[1747612008427,1.3064864,2459.0,2458.9,0.12712023]
[1747612008620,2.1194964,2459.0,2458.9,0.12712023]
[1747612009030,9.5142864,2459.0,2458.1,3.964]
[1747612009231,9.5142864,2459.0,2458.2,9.446]
[1747612009232,0.81312,2458.7,2458.2,9.446]
[1747612009420,1.301,2458.6,2458.5,3.2078]
[1747612009822,1.301,2458.6,2458.2,4.5421]
[1747612010025,4.5088,2458.6,2458.3,9.446]
[1747612010222,1.301,2458.6,2458.3,12.6538]
[1747612010520,1.301,2458.6,2458.3,9.446]
[1747612010714,0.81319,2458.5,2458.3,9.446]
[1747612011031,1.4208,2458.4,2458.3,9.446]
[1747612011230,0.81327,2458.2,2458.1,0.7562]
[1747612011426,1.4208,2458.4,2457.7,41.017]
[1747612011427,0.81331,2458.1,2457.7,41.017]
[1747612011626,2.23411,2458.1,2457.8,11.44654428]
[1747612011828,1.4208,2458.1,2457.9,0.81335]
[1747612012026,2.23411,2458.1,2457.9,1.3137]
[1747612012233,1.4208,2458.1,2457.8,1.18714428]
[1747612012435,0.81337,2457.9,2457.8,1.18714428]
[1747612013320,3.058,2457.9,2457.4,9.446]
[1747612013525,0.81347,2457.6,2457.4,9.446]
[1747612013838,1.3193,2457.5,2457.3,11.61576]
[1747612014433,0.8134,2457.9,2457.7,0.81343]
[1747612014636,3.9085,2458.3,2457.8,0.8134]
[1747612014833,0.81335,2458.0,2457.8,0.8134]
[1747612015035,1.3193,2458.1,2457.9,0.81336]
[1747612015338,1.3193,2458.1,2457.7,9.446]
[1747612015633,1.3193,2458.1,2457.7,3.2078]
[1747612015836,0.81343,2457.8,2457.5,0.81349]
[1747612016135,1.4293,2457.7,2457.5,1.3854]
[1747612016328,1.4293,2457.7,2457.6,0.81347]
[1747612016534,0.81336,2458.0,2457.7,0.81343]
[1747612016835,0.81336,2458.0,2457.7,2.19883]
[1747612017131,1.4293,2458.1,2457.7,1.3854]
[1747612017334,0.8134,2457.8,2457.7,1.3854]
[1747612017724,0.81348,2457.6,2457.4,3.2078]
[1747612017935,0.7163,2458.2,2457.5,10.8314]
[1747612018125,0.7007,2458.3,2457.9,0.81336]
[1747612018324,1.4293,2458.2,2458.0,1.3854]
[1747612018522,0.81331,2458.1,2458.0,1.3854]
[1747612018724,1.4293,2458.2,2457.8,0.7495]
[1747612018931,1.4293,2458.0,2457.8,0.7495]
[1747612019135,1.4293,2458.0,2457.9,1.3863]
[1747612019340,1.4293,2458.0,2457.7,3.2078]
[1747612019541,1.4293,2458.0,2457.8,9.447]
[1747612019732,1.4293,2458.0,2457.9,0.81337]
[1747612019933,2.24264,2458.0,2457.9,1.3863]
[1747612020133,1.4293,2458.0,2457.9,2.19967]
[1747612020341,0.7007,2458.3,2457.9,1.3863]
[1747612020637,0.81334,2458.0,2457.9,4.5941]
[1747612020841,0.81334,2458.0,2457.9,3.2078]
[1747612021043,0.81334,2458.0,2457.9,3.33494455]
[1747612021741,0.81334,2458.0,2457.9,3.33494521]
[1747612022339,0.81334,2458.0,2457.9,0.12714521]
[1747612022544,0.8135,2457.5,2457.4,1.3863]
[1747612022845,0.81345,2457.7,2457.5,0.81349]
[1747612023144,0.81345,2457.7,2457.6,0.12716337]
[1747612023642,2.24575,2457.7,2457.6,0.12716176]
[1747612025143,0.81343,2457.8,2457.6,0.94063176]
[1747612025447,0.81343,2457.8,2457.7,1.52476005]
[1747612025649,0.81343,2457.8,2457.7,0.12716005]
[1747612026043,7.03359,2457.8,2457.0,3.2078]
[1747612026249,0.8136,2457.2,2457.1,0.12717657]
[1747612026443,2.03385,2457.4,2457.1,0.12718413]
[1747612026646,0.81357,2457.3,2457.2,0.12718413]
[1747612027145,3.87157,2457.3,2457.2,0.12718413]
[1747612027340,0.81363,2457.2,2457.0,5.41906]
[1747612027541,0.81363,2457.2,2457.1,0.1271854]
[1747612028253,3.87163,2457.2,2457.1,0.1271854]
[1747612028452,0.81367,2457.0,2456.9,9.447]
[1747612028655,0.81367,2457.0,2456.9,0.12720082]
[1747612029145,10.24365,2457.1,2456.9,0.94089909]
[1747612029449,10.24365,2457.1,2457.0,0.12719909]
[1747612029946,0.81365,2457.1,2457.0,0.12719884]
[1747612030948,0.81365,2457.1,2456.7,3.2078]
[1747612030949,0.81374,2456.8,2456.7,3.2078]
[1747612031143,0.81383,2456.5,2456.4,3.2078]
[1747612031353,0.7052,2456.7,2456.5,0.81382]
[1747612031649,10.94799,2456.7,2456.6,0.12721796]
[1747612031853,0.8138,2456.6,2456.5,1.3682]
[1747612032051,0.8138,2456.6,2456.5,1.49542156]
[1747612032856,1.4752,2457.1,2456.5,1.49541574]
[1747612033058,10.24268,2457.0,2456.9,3.2078]
[1747612033260,10.24268,2457.0,2456.9,4.576]
[1747612033553,10.24268,2457.0,2456.9,1.3682]
[1747612033747,10.24268,2457.0,2456.6,3.9304]
[1747612033748,0.81377,2456.7,2456.6,13.3624]
[1747612033948,0.81377,2456.7,2456.6,3.3350061]
[1747612034145,0.81377,2456.7,2456.6,0.1272061]
[1747612034360,0.81383,2456.6,2456.4,0.81387]
[1747612034555,0.8138,2456.6,2456.5,0.1272175]
[1747612035260,0.81387,2456.4,2456.3,3.2078]
[1747612035461,0.81387,2456.4,2456.3,3.33502772]
[1747612035857,0.81387,2456.4,2456.3,3.2078]
[1747612036058,0.81386,2456.5,2456.3,4.0217]
[1747612036257,2.03435,2456.8,2456.3,3.2078]
[1747612036561,0.81387,2456.4,2456.3,3.2078]
[1747612036861,0.81387,2456.4,2456.3,3.33502903]
[1747612037052,0.814,2456.0,2455.9,0.7003]
[1747612037254,0.814,2456.0,2455.9,0.82754252]
[1747612037456,10.8376,2456.3,2455.9,0.82754252]
[1747612037658,0.81399,2456.1,2455.9,1.51432]
[1747612037963,0.814,2456.0,2455.9,2.1152]
[1747612038256,0.81399,2456.1,2455.9,2.92922]
[1747612038462,0.814,2456.0,2455.9,2.1152]
[1747612038664,0.814,2456.0,2455.6,9.433]
[1747612038665,0.81403,2455.9,2455.7,0.81408]
[1747612038864,0.81402,2456.0,2455.8,0.9413221]
[1747612039162,0.81402,2456.0,2455.8,0.81407]
[1747612039364,0.81401,2456.0,2455.8,0.81404]
[1747612039763,0.81407,2455.8,2455.7,1.4149]
[1747612039960,9.427,2455.8,2455.3,1.18714428]
[1747612040165,0.8142,2455.4,2455.3,1.18714428]
[1747612040365,0.8142,2455.4,2455.2,0.81426]
[1747612040663,0.81419,2455.5,2455.2,0.81426]
[1747612040863,1.4563,2455.7,2455.1,2.2292]
[1747612041058,9.426,2455.9,2455.2,2.03567]
[1747612041276,9.426,2455.9,2455.8,0.81407]
[1747612041563,0.81402,2456.0,2455.8,0.81407]
[1747612041865,10.23995,2456.2,2456.0,0.81398]
[1747612042062,10.23995,2456.2,2456.0,2.19088]
[1747612042268,3.9679,2456.7,2456.0,1.3769]
[1747612042559,0.7601,2456.7,2456.4,3.2078]
[1747612042761,0.8138,2456.6,2456.5,1.3769]
[1747612044164,0.7601,2456.7,2456.5,1.3769]
[1747612044362,0.8138,2456.6,2456.5,1.3769]
[1747612045166,1.3448,2456.6,2456.5,1.3769]
[1747612045565,1.3448,2456.6,2456.5,2.19073]
[1747612045864,1.3448,2456.6,2456.5,1.3769]
[1747612046063,1.3448,2456.6,2456.5,2.19073]
[1747612046262,0.7719,2457.2,2456.9,0.81369]
[1747612046468,2.24526,2457.1,2456.9,0.81369]
[1747612046669,1.4316,2457.1,2457.0,4.02147]
[1747612047061,0.81368,2457.0,2456.8,1.3646]
[1747612047263,1.4316,2456.9,2456.8,2.17834]
[1747612047470,3.87163,2457.2,2457.0,0.81365]
[1747612047662,0.81367,2457.0,2456.8,1.3646]
[1747612047862,2.24525,2457.1,2456.8,2.17832]
[1747612048059,1.4316,2457.1,2456.8,1.3646]
[1747612048363,1.05882949,2457.8,2457.1,2.0341]
[1747612048564,1.4316,2457.6,2457.5,4.0213]
[1747612049262,2.24507,2457.6,2457.5,3.2078]
[1747612049461,1.4316,2457.6,2457.5,4.0213]
[1747612049968,2.24507,2457.6,2457.5,3.2078]
[1747612050173,0.81356,2457.4,2457.2,2.92699]
[1747612050470,2.21007,2457.3,2457.2,2.1134]
[1747612050669,2.21007,2457.3,2457.2,2.24058185]
[1747612050871,2.21007,2457.3,2457.2,1.49178185]
[1747612051073,0.81367,2457.0,2456.9,9.434]
[1747612051279,1.3965,2457.3,2456.9,9.56119354]
[1747612051472,0.81366,2457.1,2457.0,0.12719354]
[1747612051865,0.81374,2456.8,2456.7,3.2078]
[1747612052066,0.81372,2456.9,2456.7,13.58274906]
[1747612052366,0.81372,2456.9,2456.8,1.44220906]
[1747612052873,1.3965,2457.0,2456.8,2.25593906]
[1747612053069,1.3965,2457.0,2456.9,0.94090007]
[1747612053275,1.3965,2457.0,2456.9,2.36500007]
[1747612053568,2.0335,2457.9,2457.3,0.81354]
[1747612053569,0.81352,2457.5,2457.3,0.81354]
[1747612053775,1.3896,2457.6,2457.2,3.2078]
[1747612053976,1.3896,2457.6,2457.5,0.8135]
[1747612054478,1.3896,2457.6,2457.5,0.94067041]
[1747612054674,2.20307,2457.6,2457.5,0.12717041]
[1747612054874,0.81357,2457.3,2457.2,12.6418]
[1747612055081,0.81355,2457.4,2457.2,13.58257007]
[1747612055376,1.3896,2457.6,2457.3,1.55128007]
[1747612055576,0.8135,2457.5,2457.4,0.12717391]
[1747612055875,0.8135,2457.5,2457.4,1.45887391]
[1747612056075,2.20308,2457.6,2457.4,2.27240391]
[1747612056278,2.20308,2457.6,2457.4,2.14523]
[1747612056471,1.3896,2457.6,2457.5,0.94066948]
[1747612056975,1.3896,2457.6,2457.5,4.14846948]
[1747612057170,2.16314582,2458.1,2457.9,0.81335]
[1747612057372,2.16314582,2458.1,2457.8,0.81338]
[1747612057373,0.81334,2458.0,2457.8,0.81338]
[1747612057572,1.3417,2458.0,2457.9,1.3317]
[1747612057775,1.3417,2458.0,2457.9,2.14507]
[1747612058981,1.5052,2458.5,2457.9,1.4588446]
[1747612059177,1.414,2458.3,2458.2,0.81327]
[1747612059376,1.414,2458.3,2458.2,0.9404006]
[1747612059585,1.414,2458.3,2458.1,0.81328]
[1747612059879,1.414,2458.3,2458.2,0.81327]
[1747612060080,2.22724,2458.3,2458.1,0.81328]
[1747612060272,2.22724,2458.3,2458.2,0.81327]
[1747612060472,0.81324,2458.3,2458.1,1.3198]
[1747612060879,2.1537,2458.5,2458.4,0.81321]
[1747612061178,0.81321,2458.4,2458.3,4.02102]
[1747612061383,1.414,2458.4,2458.3,4.02102]
[1747612062283,2.65042582,2458.6,2458.4,0.81319]
[1747612062475,2.65042582,2458.6,2458.4,2.21199]
[1747612062987,2.65042582,2458.6,2458.0,9.415]
[1747612063175,0.81322,2458.4,2458.2,0.81325]
[1747612063482,1.3006,2458.6,2458.3,0.81324]
[1747612063681,1.3006,2458.6,2458.2,1.3988]
[1747612063981,0.81319,2458.5,2458.3,0.81323]
[1747612064181,1.3006,2458.4,2458.3,0.81323]
[1747612064378,1.3006,2458.4,2458.2,1.3988]
[1747612064577,1.3006,2458.4,2458.3,0.81324]
[1747612064784,0.81324,2458.3,2458.2,1.3988]
[1747612064981,0.81324,2458.3,2458.1,4.02109]
[1747612065285,1.3391,2458.2,2458.1,4.02109]
[1747612065683,2.15237,2458.2,2458.1,4.02109]
[1747612065876,2.15237,2458.2,2458.0,0.81332]
[1747612065877,1.3391,2458.2,2458.0,0.81332]
[1747612066078,1.3391,2458.2,2458.1,0.81331]
[1747612066278,1.3391,2458.2,2458.1,4.02111]
[1747612066781,2.15237,2458.2,2458.1,3.2078]
[1747612066982,2.15237,2458.2,2458.1,4.0211]
[1747612067183,2.15237,2458.2,2458.1,3.2078]
[1747612067378,1.3391,2458.2,2458.1,4.0211]
[1747612067779,2.15237,2458.2,2458.1,4.0211]
[1747612067980,0.31752824,2458.7,2458.1,3.2078]
[1747612068182,0.8132,2458.5,2458.4,0.81321]
[1747612068381,0.8132,2458.5,2458.3,0.81322]